Workbook

Sheet Дети от 3-до 7 лет
B1: МБДОУ д/с № 362
A2: Прием пищи | B2: Блюдо | C2: Выход | D2: Калорийность | E2: Белки | F2: Жиры | G2: Углеводы
A3: Завтрак | B3: ='[2]Дневной рацион, Дети 3-7 лет, '!D4 -> каша вязкая молочная геркулес. | C3: ='[2]Дневной рацион, Дети 3-7 лет, '!E4 -> 201 | D3: ='[2]Дневной рацион, Дети 3-7 лет, '!G4 -> 32.884 | E3: ='[2]Дневной рацион, Дети 3-7 лет, '!H4 -> 1.026 | F3: ='[2]Дневной рацион, Дети 3-7 лет, '!I4 -> 1.347 | G3: ='[2]Дневной рацион, Дети 3-7 лет, '!J4 -> 4.121
B4: ='[2]Дневной рацион, Дети 3-7 лет, '!D5 -> Бутерброды (батон) с маслом . | C4: ='[2]Дневной рацион, Дети 3-7 лет, '!E5 -> 35 | D4: ='[2]Дневной рацион, Дети 3-7 лет, '!G5 -> 146 | E4: ='[2]Дневной рацион, Дети 3-7 лет, '!H5 -> 1.6 | F4: ='[2]Дневной рацион, Дети 3-7 лет, '!I5 -> 11 | G4: ='[2]Дневной рацион, Дети 3-7 лет, '!J5 -> 10
B5: ='[2]Дневной рацион, Дети 3-7 лет, '!D6 -> Чай с сахаром . | C5: ='[2]Дневной рацион, Дети 3-7 лет, '!E6 -> 200 | D5: ='[2]Дневной рацион, Дети 3-7 лет, '!G6 -> 57 | E5: ='[2]Дневной рацион, Дети 3-7 лет, '!H6 -> 0.2 | F5: ='[2]Дневной рацион, Дети 3-7 лет, '!I6 -> 0 | G5: ='[2]Дневной рацион, Дети 3-7 лет, '!J6 -> 15
A7: завтрак №2
B8: ='[2]Дневной рацион, Дети 3-7 лет, '!D7 -> кукуруза с зел.горошком (консервированный). | C8: ='[2]Дневной рацион, Дети 3-7 лет, '!E7 -> 43 | D8: ='[2]Дневной рацион, Дети 3-7 лет, '!G7 -> 15.003 | E8: ='[2]Дневной рацион, Дети 3-7 лет, '!H7 -> 0.574 | F8: ='[2]Дневной рацион, Дети 3-7 лет, '!I7 -> 0.096 | G8: ='[2]Дневной рацион, Дети 3-7 лет, '!J7 -> 2.963
A9: Обед | B9: ='[2]Дневной рацион, Дети 3-7 лет, '!D8 -> Суп крестьянский с крупой (крупа перловая). | C9: ='[2]Дневной рацион, Дети 3-7 лет, '!E8 -> 202 | D9: ='[2]Дневной рацион, Дети 3-7 лет, '!G8 -> 99.869 | E9: ='[2]Дневной рацион, Дети 3-7 лет, '!H8 -> 1.98 | F9: ='[2]Дневной рацион, Дети 3-7 лет, '!I8 -> 4.99 | G9: ='[2]Дневной рацион, Дети 3-7 лет, '!J8 -> 11.777
B10: ='[2]Дневной рацион, Дети 3-7 лет, '!D9 -> Пудинг рыбный запеченный . | C10: ='[2]Дневной рацион, Дети 3-7 лет, '!E9 -> 149 | D10: ='[2]Дневной рацион, Дети 3-7 лет, '!G9 -> 113.879 | E10: ='[2]Дневной рацион, Дети 3-7 лет, '!H9 -> 10.963 | F10: ='[2]Дневной рацион, Дети 3-7 лет, '!I9 -> 4.801 | G10: ='[2]Дневной рацион, Дети 3-7 лет, '!J9 -> 6.61
B11: ='[2]Дневной рацион, Дети 3-7 лет, '!D10 -> Напиток клюквенный. | C11: ='[2]Дневной рацион, Дети 3-7 лет, '!E10 -> 197 | D11: ='[2]Дневной рацион, Дети 3-7 лет, '!G10 -> 40.385 | E11: ='[2]Дневной рацион, Дети 3-7 лет, '!H10 -> 0.099 | F11: ='[2]Дневной рацион, Дети 3-7 лет, '!I10 -> 0.04 | G11: ='[2]Дневной рацион, Дети 3-7 лет, '!J10 -> 9.752
B12: ='[2]Дневной рацион, Дети 3-7 лет, '!D11 -> Хлеб пшеничный | C12: ='[2]Дневной рацион, Дети 3-7 лет, '!E11 -> 40 | D12: ='[2]Дневной рацион, Дети 3-7 лет, '!G11 -> 0 | E12: ='[2]Дневной рацион, Дети 3-7 лет, '!H11 -> 0 | F12: ='[2]Дневной рацион, Дети 3-7 лет, '!I11 -> 0 | G12: ='[2]Дневной рацион, Дети 3-7 лет, '!J11 -> 0
B13: ='[2]Дневной рацион, Дети 3-7 лет, '!D12 -> Хлеб ржаной | C13: ='[2]Дневной рацион, Дети 3-7 лет, '!E12 -> 37 | D13: ='[2]Дневной рацион, Дети 3-7 лет, '!G12 -> 0 | E13: ='[2]Дневной рацион, Дети 3-7 лет, '!H12 -> 0 | F13: ='[2]Дневной рацион, Дети 3-7 лет, '!I12 -> 0 | G13: ='[2]Дневной рацион, Дети 3-7 лет, '!J12 -> 0
A15: полдник | B15: ='[2]Дневной рацион, Дети 3-7 лет, '!D13 -> Вафли | C15: ='[2]Дневной рацион, Дети 3-7 лет, '!E13 -> 37 | D15: ='[2]Дневной рацион, Дети 3-7 лет, '!G13 -> 129.5 | E15: ='[2]Дневной рацион, Дети 3-7 лет, '!H13 -> 1.036 | F15: ='[2]Дневной рацион, Дети 3-7 лет, '!I13 -> 1.221 | G15: ='[2]Дневной рацион, Дети 3-7 лет, '!J13 -> 28.601
B16: ='[2]Дневной рацион, Дети 3-7 лет, '!D14 -> Ряженка | C16: ='[2]Дневной рацион, Дети 3-7 лет, '!E14 -> 198 | D16: ='[2]Дневной рацион, Дети 3-7 лет, '!G14 -> 91.08 | E16: ='[2]Дневной рацион, Дети 3-7 лет, '!H14 -> 5.391 | F16: ='[2]Дневной рацион, Дети 3-7 лет, '!I14 -> 4.401 | G16: ='[2]Дневной рацион, Дети 3-7 лет, '!J14 -> 7.591
A18: ужин | B18: ='[2]Дневной рацион, Дети 3-7 лет, '!D15 -> Запеканка из творога со сгущенным молоком. | C18: ='[2]Дневной рацион, Дети 3-7 лет, '!E15 -> 153 | D18: ='[2]Дневной рацион, Дети 3-7 лет, '!G15 -> 310.284 | E18: ='[2]Дневной рацион, Дети 3-7 лет, '!H15 -> 30.09 | F18: ='[2]Дневной рацион, Дети 3-7 лет, '!I15 -> 10.914 | G18: ='[2]Дневной рацион, Дети 3-7 лет, '!J15 -> 22.746
B19: ='[2]Дневной рацион, Дети 3-7 лет, '!D16 -> Напиток лимонный . | C19: ='[2]Дневной рацион, Дети 3-7 лет, '!E16 -> 197 | D19: ='[2]Дневной рацион, Дети 3-7 лет, '!G16 -> 64.025 | E19: ='[2]Дневной рацион, Дети 3-7 лет, '!H16 -> 0.266 | F19: ='[2]Дневной рацион, Дети 3-7 лет, '!I16 -> 0.06 | G19: ='[2]Дневной рацион, Дети 3-7 лет, '!J16 -> 15.169
B20: ='[2]Дневной рацион, Дети 3-7 лет, '!D17 -> Хлеб пшеничный | C20: ='[2]Дневной рацион, Дети 3-7 лет, '!E17 -> 20 | D20: ='[2]Дневной рацион, Дети 3-7 лет, '!G17 -> 0 | E20: ='[2]Дневной рацион, Дети 3-7 лет, '!H17 -> 0 | F20: ='[2]Дневной рацион, Дети 3-7 лет, '!I17 -> 0 | G20: ='[2]Дневной рацион, Дети 3-7 лет, '!J17 -> 0

Sheet Дети до 3-лет
A3: Прием пищи | B3: Блюдо | C3: Выход | D3: Калорийность | E3: Белки | F3: Жиры | G3: Углеводы
A4: Завтрак | B4: ='[3]Дневной рацион, Дети до 3х лет'!D4 -> каша вязкая молочная геркулес. | C4: ='[3]Дневной рацион, Дети до 3х лет'!E4 -> 171 | D4: ='[1]Дневной рацион, Дети до 3х лет'!F4 -> 0 | E4: ='[3]Дневной рацион, Дети до 3х лет'!G4 -> 27.976 | F4: ='[3]Дневной рацион, Дети до 3х лет'!H4 -> 0.873 | G4: ='[3]Дневной рацион, Дети до 3х лет'!I4 -> 1.146
B5: ='[3]Дневной рацион, Дети до 3х лет'!D5 -> Бутерброды (батон) с маслом . | C5: ='[3]Дневной рацион, Дети до 3х лет'!E5 -> 25 | D5: ='[1]Дневной рацион, Дети до 3х лет'!F5 -> 0 | E5: ='[3]Дневной рацион, Дети до 3х лет'!G5 -> 104.286 | F5: ='[3]Дневной рацион, Дети до 3х лет'!H5 -> 1.143 | G5: ='[3]Дневной рацион, Дети до 3х лет'!I5 -> 7.858
B6: ='[3]Дневной рацион, Дети до 3х лет'!D6 -> Чай с сахаром . | C6: ='[3]Дневной рацион, Дети до 3х лет'!E6 -> 180 | D6: ='[1]Дневной рацион, Дети до 3х лет'!F6 -> 0 | E6: ='[3]Дневной рацион, Дети до 3х лет'!G6 -> 51.3 | F6: ='[3]Дневной рацион, Дети до 3х лет'!H6 -> 0.18 | G6: ='[3]Дневной рацион, Дети до 3х лет'!I6 -> 0
A7: завтрак №2
B9: ='[3]Дневной рацион, Дети до 3х лет'!D7 -> кукуруза с зел.горошком (консервированный). | C9: ='[3]Дневной рацион, Дети до 3х лет'!E7 -> 29 | D9: ='[1]Дневной рацион, Дети до 3х лет'!F7 -> 0 | E9: ='[3]Дневной рацион, Дети до 3х лет'!G7 -> 10.119 | F9: ='[3]Дневной рацион, Дети до 3х лет'!H7 -> 0.387 | G9: ='[3]Дневной рацион, Дети до 3х лет'!I7 -> 0.065
A10: Обед | B10: ='[3]Дневной рацион, Дети до 3х лет'!D8 -> Суп крестьянский с крупой (крупа перловая). | C10: ='[3]Дневной рацион, Дети до 3х лет'!E8 -> 182 | E10: ='[3]Дневной рацион, Дети до 3х лет'!G8 -> 89.981 | F10: ='[3]Дневной рацион, Дети до 3х лет'!H8 -> 1.784 | G10: ='[3]Дневной рацион, Дети до 3х лет'!I8 -> 4.496
B11: ='[3]Дневной рацион, Дети до 3х лет'!D9 -> Пудинг рыбный запеченный . | C11: ='[3]Дневной рацион, Дети до 3х лет'!E9 -> 130 | E11: ='[3]Дневной рацион, Дети до 3х лет'!G9 -> 99.358 | F11: ='[3]Дневной рацион, Дети до 3х лет'!H9 -> 9.565 | G11: ='[3]Дневной рацион, Дети до 3х лет'!I9 -> 4.188
B12: ='[3]Дневной рацион, Дети до 3х лет'!D10 -> Напиток клюквенный. | C12: ='[3]Дневной рацион, Дети до 3х лет'!E10 -> 177 | D12: ='[1]Дневной рацион, Дети до 3х лет'!F8 -> 0 | E12: ='[3]Дневной рацион, Дети до 3х лет'!G10 -> 36.285 | F12: ='[3]Дневной рацион, Дети до 3х лет'!H10 -> 0.089 | G12: ='[3]Дневной рацион, Дети до 3х лет'!I10 -> 0.036
B13: ='[3]Дневной рацион, Дети до 3х лет'!D11 -> Хлеб пшеничный | C13: ='[3]Дневной рацион, Дети до 3х лет'!E11 -> 30 | D13: ='[1]Дневной рацион, Дети до 3х лет'!F9 -> 0 | E13: ='[3]Дневной рацион, Дети до 3х лет'!G11 -> 0 | F13: ='[3]Дневной рацион, Дети до 3х лет'!H11 -> 0 | G13: ='[3]Дневной рацион, Дети до 3х лет'!I11 -> 0
B14: ='[3]Дневной рацион, Дети до 3х лет'!D12 -> Хлеб ржаной | C14: ='[3]Дневной рацион, Дети до 3х лет'!E12 -> 32 | D14: ='[1]Дневной рацион, Дети до 3х лет'!F10 -> 0 | E14: ='[3]Дневной рацион, Дети до 3х лет'!G12 -> 0 | F14: ='[3]Дневной рацион, Дети до 3х лет'!H12 -> 0 | G14: ='[3]Дневной рацион, Дети до 3х лет'!I12 -> 0
A16: полдник | B16: ='[3]Дневной рацион, Дети до 3х лет'!D13 -> Вафли | C16: ='[3]Дневной рацион, Дети до 3х лет'!E13 -> 28 | D16: ='[1]Дневной рацион, Дети до 3х лет'!F11 -> 0 | E16: ='[3]Дневной рацион, Дети до 3х лет'!G13 -> 98 | F16: ='[3]Дневной рацион, Дети до 3х лет'!H13 -> 0.784 | G16: ='[3]Дневной рацион, Дети до 3х лет'!I13 -> 0.924
B17: ='[3]Дневной рацион, Дети до 3х лет'!D14 -> Ряженка | C17: ='[3]Дневной рацион, Дети до 3х лет'!E14 -> 168 | D17: ='[1]Дневной рацион, Дети до 3х лет'!F12 -> 0 | E17: ='[3]Дневной рацион, Дети до 3х лет'!G14 -> 77.28 | F17: ='[3]Дневной рацион, Дети до 3х лет'!H14 -> 4.574 | G17: ='[3]Дневной рацион, Дети до 3х лет'!I14 -> 3.734
B19: ='[3]Дневной рацион, Дети до 3х лет'!D15 -> Запеканка из творога со сгущенным молоком. | C19: ='[3]Дневной рацион, Дети до 3х лет'!E15 -> 113 | E19: ='[3]Дневной рацион, Дети до 3х лет'!G15 -> 229.164 | F19: ='[3]Дневной рацион, Дети до 3х лет'!H15 -> 22.225 | G19: ='[3]Дневной рацион, Дети до 3х лет'!I15 -> 8.062
A20: Ужин | B20: ='[3]Дневной рацион, Дети до 3х лет'!D16 -> Напиток лимонный . | C20: ='[3]Дневной рацион, Дети до 3х лет'!E16 -> 167 | D20: ='[1]Дневной рацион, Дети до 3х лет'!F13 -> 0 | E20: ='[3]Дневной рацион, Дети до 3х лет'!G16 -> 54.275 | F20: ='[3]Дневной рацион, Дети до 3х лет'!H16 -> 0.226 | G20: ='[3]Дневной рацион, Дети до 3х лет'!I16 -> 0.051
B21: ='[3]Дневной рацион, Дети до 3х лет'!D17 -> Хлеб пшеничный | C21: ='[3]Дневной рацион, Дети до 3х лет'!E17 -> 20 | D21: ='[1]Дневной рацион, Дети до 3х лет'!F14 -> 0 | E21: ='[3]Дневной рацион, Дети до 3х лет'!G17 -> 0 | F21: ='[3]Дневной рацион, Дети до 3х лет'!H17 -> 0 | G21: ='[3]Дневной рацион, Дети до 3х лет'!I17 -> 0
